Cogmind - Beta 13 @@@ ROGUE MODE // 2024.07.02 @ 22:08:21 Player: mandos Result: Destroyed by G-47 Trooper with Particle Gun Performance ------------- Evolutions (1) 500 Regions Visited (3) 600 Robots Destroyed (22) 110 Value Destroyed (405) 405 Prototype IDs (0) 0 Alien Tech Used (0) 0 Bonus (0) 0 TOTAL SCORE: 1615 Bonus ------- None Cogmind --------- Core Integrity 0/400 Matter 200/300 Energy 100/100 System Corruption 0% Temperature Cool (11) Movement Treading (160) Location -9/Materials Parts ------- > --- POWER (2) -------- (None) > --- PROPULSION (2) --- Light Treads Light Treads > --- UTILITY (3) ------ Small Storage Unit > --- WEAPON (2) ------- Light Assault Rifle Improved Light Cannon > --- INVENTORY (8) ---- (None) Peak State ------------ > --- POWER ------------ Ion Engine Ion Engine > --- PROPULSION ------- Light Treads Light Treads > --- UTILITY ---------- Small Storage Unit > --- WEAPON ----------- Light Assault Rifle Grenade Launcher > --- INVENTORY -------- Light Ion Engine [Rating: 7] Favorites ----------- Power Ion Engine Engine Ion Engine Propulsion Light Treads Treads Light Treads Utility Small Storage Unit Storage Small Storage Unit Weapon Grenade Launcher Energy Gun EM Pulse Gun Ballistic Gun Light Assault Rifle Ballistic Cannon Improved Light Cannon Launcher Grenade Launcher Build | -11 -10 -10 -9 ------- Run | Yrd Mat Min Mat Slots Evolved 2 | . . . 2 Power 1 | . . . 1 Propulsion . | . . . . Utility 1 | . . . 1 Weapon . | . . . . Parts Attached 18 | 6 1 3 8 Power 5 | 1 . 2 2 Engine 5 | 1 . 2 2 Core . | . . . . Reactor . | . . . . Propulsion 4 | 2 . . 2 Treads 4 | 2 . . 2 Leg . | . . . . Wheel . | . . . . Hover . | . . . . Flight . | . . . . Utility 1 | 1 . . . Device . | . . . . Storage 1 | 1 . . . Processor . | . . . . Hackware . | . . . . Protection . | . . . . Artifact . | . . . . Weapon 8 | 2 1 1 4 Energy Gun 1 | 1 . . . Energy Cannon . | . . . . Ballistic Gun 3 | 1 . 1 1 Ballistic Cannon 3 | . . . 3 Launcher 1 | . 1 . . Special Weapon . | . . . . Impact Weapon . | . . . . Slashing Weapon . | . . . . Piercing Weapon . | . . . . Special Melee Weapon . | . . . . Unidentified Prototypes . | . . . . Parts Lost 10 | . . 1 9 Power 3 | . . . 3 Propulsion 2 | . . . 2 Utility . | . . . . Weapon 5 | . . 1 4 Highest Loss Streak 6 | . . 1 6 To Critical Strikes . | . . . . Average Slot Usage (%) 79 | . 85 83 54 Engine 13 | . 14 14 11 Treads 25 | . 28 28 14 Storage 13 | . 14 14 11 Energy Gun 3 | . 14 . . Ballistic Gun 9 | . 2 12 7 Launcher 11 | . 11 14 4 Naked Turns . | . . . . Heaviest Build 19 | 13 15 15 19 Greatest Support 40 | 40 40 40 40 Greatest Overweight (x) 4 | 3 . . 4 Average Overweight (x) . | . . . . Largest Inventory Capacity 8 | 8 8 8 8 Average Capacity 7 | 7 8 8 8 Most Carried 2 | . 1 2 1 Average Carried . | . . 1 . Final Capacity 8 | 8 8 8 8 Final Carried 2 | . 1 2 . Class Distribution -------------------- 100% | Mutant Dominant Class ---------------- Mutant | -10/Materials Mutant | -10/Mines Mutant | -9/Materials Resources | -11 -10 -10 -9 ----------- Run | Yrd Mat Min Mat Matter Collected 460 | 207 29 213 11 Remotely . | . . . . Salvage Created 270 | . 58 130 82 Parts 34 | . 9 17 8 Haulers Intercepted . | . . . . Recyclers Shooed 1 | . . 1 . Parts Field Recycled . | . . . . Retrieved Matter . | . . . . Parts Self-Destructed . | . . . . Prevented . | . . . . Kills | -11 -10 -10 -9 ------- Run | Yrd Mat Min Mat Combat Hostiles Destroyed 18 | . 5 8 5 Guns 4 | . . 3 1 Cannons 4 | . . . 4 AOE 10 | . 5 5 . Classes Destroyed 6 | . 3 2 1 Worker 1 | . . 1 . Builder 2 | . . 2 . Watcher 1 | . 1 . . Swarmer 12 | . 3 6 3 Grunt 5 | . 2 2 1 Sentry 1 | . . . 1 Best Kill Streak 6 | . 4 6 4 Combat Bots Only 6 | . 3 6 4 Max Kills in Single Turn 3 | . 3 2 2 Gunslinging . | . . . . Exploded 3 | . 3 2 . Melee . | . . . . Uniques/NPCs Destroyed . | . . . . Combat | -11 -10 -10 -9 -------- Run | Yrd Mat Min Mat Hostile Shots Fired 207 | . 13 36 158 Missed 58 | . 7 11 40 Damage Taken 1657 | . 115 275 1267 Core 455 | . 11 37 407 Absorbed by Shields . | . . . . Core Remaining (%) 90 | 100 . 80 . Volleys Fired 30 | . 6 12 12 Largest 2 | . 2 2 2 Hottest 78 | . 70 70 78 Shots Fired 52 | . 11 20 21 Gun 23 | . 6 10 7 Cannon 13 | . . . 13 Launcher 16 | . 5 10 1 Special . | . . . . Kinetic 28 | . . 8 20 Thermal . | . . . . Explosive 16 | . 5 10 1 Electromagnetic 8 | . 6 2 . Robot Hit Streak 4 | . 4 4 4 Robot Miss Streak 2 | . 1 2 2 Penetration Max . | . . . . Secondary Targets . | . . . . Shots Hit Robots 33 | . 8 12 13 Core Hits 37 | . 9 20 8 Critical Kills . | . . . . Critical Parts Destroyed . | . . . . Critical Strikes 2 | . 1 . 1 Blast 1 | . . . 1 Corrupt 1 | . 1 . . Melee Attacks . | . . . . Impact . | . . . . Slashing . | . . . . Piercing . | . . . . Sneak Attacks . | . . . . Combat Hostiles . | . . . . Follow-up Attacks . | . . . . Damage Inflicted 1447 | . 381 722 344 Guns 188 | . 72 76 40 Cannons 235 | . . . 235 Explosions 1018 | . 309 640 69 Melee . | . . . . Ramming 6 | . . 6 . Kinetic 336 | . . 61 275 Thermal . | . . . . Explosive 1018 | . 309 640 69 Electromagnetic 87 | . 72 15 . Impact . | . . . . Slashing . | . . . . Piercing . | . . . . Highest Corruption . | . . . . Average Corruption . | . . . . Corruption Purged . | . . . . Corruption Blocked . | . . . . Overload Shots . | . . . . Overflow Damage 11 | . 8 . 3 Projectiles . | . . . . Explosions 11 | . 8 . 3 Melee . | . . . . Knockbacks 1 | . . . 1 Impact . | . . . . Kinetic 1 | . . . 1 Secondary . | . . . . Self-Inflicted Damage 110 | . 47 42 21 Shots 6 | . 3 2 1 Rammed 1 | . . 1 . Targets Rammed 1 | . . 1 . Kicked . | . . . . Crushed . | . . . . Highest Temperature 76 | . 48 54 76 Average Temperature 19 | . 17 17 21 Received Heat Transfer 519 | . 36 42 441 Siege Activations . | . . . . Robots Corrupted . | . . . . Combat Hostiles . | . . . . Parts Fried . | . . . . Impact Corruptions . | . . . . Robots Melted . | . . . . Combat Hostiles . | . . . . Parts Melted . | . . . . Heat Transferred . | . . . . Parts Sabotaged . | . . . . Parts Stolen . | . . . . Parts Stripped . | . . . . Power Chain Reactions . | . . . . Alert | -11 -10 -10 -9 ------- Run | Yrd Mat Min Mat Peak Influence 311 | . 96 311 100 Initial 42 | . . 37 42 Average 131 | . 39 192 44 Maximum Alert Level 1 | . . 1 . Low Security (%) 73 | 100 100 56 100 Level 1 26 | . . 43 . Level 2 . | . . . . Level 3 . | . . . . Level 4 . | . . . . Level 5 . | . . . . High Security . | . . . . Max Security . | . . . . Squads Dispatched 1 | . 1 . . Investigation . | . . . . Extermination . | . . . . Reinforcement 1 | . 1 . . Assault . | . . . . Garrison . | . . . . Intercept . | . . . . Searches Triggered . | . . . . Construction Impeded . | . . . . Haulers Reinforced . | . . . . Active Scanning Responses . | . . . . Cargo Convoy Interrupts . | . . . . Stealth | -11 -10 -10 -9 --------- Run | Yrd Mat Min Mat Distress Signals 2 | . 1 . 1 Communications Jammed . | . . . . Distress Signals . | . . . . Times Spotted 26 | . 7 9 10 Peak Tracking Total 8 | . 4 3 8 Tactical Retreats 1 | . . 1 . Traps | -11 -10 -10 -9 ------- Run | Yrd Mat Min Mat Traps Triggered . | . . . . Indirectly . | . . . . Trap Hack Attempts . | . . . . Triggered . | . . . . Disarmed . | . . . . Reprogrammed . | . . . . Reused . | . . . . Traps Extracted . | . . . . Installed . | . . . . Triggered . | . . . . Machines | -11 -10 -10 -9 ---------- Run | Yrd Mat Min Mat Machines Disabled 3 | . 1 1 1 Max in Single Turn 1 | . 1 1 1 Machines Repaired . | . . . . Machines Dismantled . | . . . . Machines Sabotaged . | . . . . Overloaded Fab Kills . | . . . . Hacking | -11 -10 -10 -9 --------- Run | Yrd Mat Min Mat Machines Accessed 3 | . 2 . 1 Terminals 3 | . 2 . 1 Fabricators . | . . . . Repair Stations . | . . . . Recycling Units . | . . . . Scanalyzers . | . . . . Garrison Access . | . . . . Total Hacks 5 | . 4 . 1 Successful 4 | . 3 . 1 Failed 1 | . 1 . . Catastrophic 1 | . 1 . . Database Lockouts . | . . . . Manual 4 | . 3 . 1 Terminals 5 | . 4 . 1 Fabricators . | . . . . Repair Stations . | . . . . Recycling Units . | . . . . Scanalyzers . | . . . . Garrison Access . | . . . . Terminal Hacks 4 | . 3 . 1 Unreport Threat 2 | . 1 . 1 Security Status 1 | . 1 . . Hauler Manifests 1 | . 1 . . Fabricator Hacks . | . . . . Repair Station Hacks . | . . . . Recycling Unit Hacks . | . . . . Scanalyzer . | . . . . Garrison Access Hacks . | . . . . Unauthorized Hacks . | . . . . Terminals . | . . . . Fabricators . | . . . . Repair Stations . | . . . . Recycling Units . | . . . . Scanalyzers . | . . . . Garrison Access . | . . . . Data Cores Recovered . | . . . . Used . | . . . . Hacking Detections 1 | . 1 . . Full Trace Events 1 | . 1 . . Feedback Events . | . . . . Feedback Blocked . | . . . . Robot Schematics Acquired . | . . . . Robots Built . | . . . . Authchips . | . . . . Time . | . . . . Total Robot Build Rating . | . . . . Part Schematics Acquired . | . . . . Parts Built . | . . . . Authchips . | . . . . Time . | . . . . Total Part Build Rating . | . . . . Parts Repaired . | . . . . Time . | . . . . Parts Recycled . | . . . . Recycled Matter . | . . . . Retrieved Matter . | . . . . Retrieved Components . | . . . . Parts Scanalyzed . | . . . . Part Schematics Acquired . | . . . . Parts Damaged . | . . . . Bothacking | -11 -10 -10 -9 ------------ Run | Yrd Mat Min Mat Used RIF Installer . | . . . . Robots Hacked . | . . . . Non-combat . | . . . . Combat . | . . . . Robot Hacks Applied . | . . . . Relay Couplers Released . | . . . . Fabnet Peak Effective % . | . . . . Robots Rewired . | . . . . Allies Hacked . | . . . . Hacks Repelled . | . . . . Allies | -11 -10 -10 -9 -------- Run | Yrd Mat Min Mat Total Allies . | . . . . Largest Group . | . . . . Highest-Rated Group . | . . . . Highest-Rated Ally . | . . . . Total Orders . | . . . . Ally Attacks . | . . . . Total Damage . | . . . . Kills . | . . . . Allies Corrupted . | . . . . Allies Melted . | . . . . Intel | -11 -10 -10 -9 ------- Run | Yrd Mat Min Mat Robot Analysis Total . | . . . . Derelict Logs Recovered . | . . . . Drone Launches . | . . . . Drone Recoveries . | . . . . Exploration | -11 -10 -10 -9 ------------- Run | Yrd Mat Min Mat Turns Passed 1117 | 58 192 683 184 Spaces Moved 625 | 33 109 395 88 Core 35 | 12 . . 23 Treads 590 | 21 109 395 65 Legs . | . . . . Wheels . | . . . . Hover . | . . . . Flight . | . . . . Fastest Speed 50 | 50 160 160 100 Average Speed 159 | 153 160 160 160 Slowest Speed 250 | 200 160 160 250 Overloaded Moves . | . . . . Propulsion Burnouts . | . . . . Robots Hopped . | . . . . Cave-ins Triggered . | . . . . Exploration Rate (%) 30 | 3 22 77 18 Regions Visited 3 Branch Regions 1 Pre-discovered Areas . | . . . . Known Exits Taken . | . . . . Unknown Exits Taken 3 | 1 1 1 . Scrap Searched 1 | . . 1 . Spaces Dug . | . . . . Terrain Destroyed 82 | . 16 60 6 Melee . | . . . . Projectile . | . . . . AOE 82 | . 16 60 6 Terrain Rammed . | . . . . Walls Destroyed . | . . . . Machines Disabled . | . . . . Actions | -11 -10 -10 -9 --------- Run | Yrd Mat Min Mat Total 689 | 38 116 427 108 Wait 14 | . . 14 . Move 622 | 32 108 394 88 Hop . | . . . . Pick Up 2 | . . 2 . Fast Attach 13 | 6 1 . 6 Attach 3 | . . 1 2 Detach 1 | . 1 . . Swap 2 | . . 2 . Drop 1 | . . 1 . Fire 30 | . 6 12 12 Melee . | . . . . Ram . | . . . . Kick . | . . . . Crush 1 | . . 1 . Escape Stasis . | . . . . Rewire . | . . . . Trap . | . . . . Miscellaneous . | . . . . Route ------- -11/Scrapyard -10/Materials -10/Mines (discovered 2 exits: *Mat x2) -9/Materials History --------- Turn | Location | Event 15 | -11/Scrapyard | Discovered new exit (range 16) 59 | -11/Scrapyard | Entered Materials 242 | -10/Materials | Discovered new exit (range 7) 251 | -10/Materials | Entered Mines 280 | -10/Mines | Met a Derelict bent on vengeance 293 | -10/Mines | Discovered new exit (range 8) 316 | -10/Mines | Build established: Mutant 642 | -10/Mines | Assembled infested the area 917 | -10/Mines | Discovered new exit (range 8) 934 | -10/Mines | Entered Materials 934 | -9/Materials | Evolved 2 slots: Power x1, Utility x1 1042 | -9/Materials | Core integrity fell below 50% 1061 | -9/Materials | Lost 6 parts (2p2n2w) 1070 | -9/Materials | Core integrity fell below 20% 1114 | -9/Materials | Lost 3 parts (1p2w) 1118 | -9/Materials | Destroyed by G-47 Trooper with Particle Gun Last Messages --------------- 01070_ Acquired 7 matter. 01070_ Imp. Light Cannon destroyed. 01071_ K-01 Serf collects debris. 01072_ U-05 Engineer builds a Door. 01073_ Acquired Lgt. Treads. 01075_ K-01 Serf collects debris. 01076_ K-01 Serf destroyed. 01078_ U-05 Engineer builds a Wall. 01078_ K-01 Serf collects debris. 01080_ Critical hit (Burn: +37). 01080_ Acquired Lgt. Assault Rifle. 01082_ K-01 Serf collects debris. 01083_ Lgt. Ion Engine destroyed. 01086_ K-01 Serf collects debris. 01087_ Acquired Imp. Light Cannon. 01089_ K-01 Serf cleans the Atomic Centrifuge. 01091_ K-01 Serf collects debris. 01110_ G-34 Mercenary Aluminum Leg blasted off. 01110_ G-34 Mercenary knocked back. 01116_ G-34 Mercenary destroyed. Map ----- +----------------------------------------------------+ | ?????????????????????????????????????????????????? | | ?????????????????????????????????????????????????? | | ?????????????????????????????????????????????????? | | ?????????????????????????????????????????????????? | | ?????????????????????????????????????????????????? | | ?????????????????????????????????????????????????? | | ?????????????????????????????????????????????????? | | ?????????????????????????????????????????????????? | | ?????????????????????????????????????????????????? | | ?????????????????????????????????????????????????? | | ?????????????????????????????????????????????????? | | ?????????????????????????????????????????????????? | | ?????????????????????????????????????????????????? | | ?????????????????????????????????????????????????? | | ?????????????????????????????????????????????????? | | ?????????????????????????????????????????????????? | | ?????????????????????????????????????????????????? | | ?????????????????????????????????????????????????? | | ???????????????????????##########????????????????? | | ???????????????????????# ?????????????????? | | ???????????????????????# ?????????????????? | | ??????????????? ?????# ?#????????????????? | | ??????????????# #????# """ #????????????????? | | ??????????????# #????# """"" #????????????????? | | ??????????????# #????# """"" #????????????????? | | ??????????????# #????# @""""" #????????????????? | | ??????????????# ###### """% #????????????????? | | ??????????????# ##"""# %[ #????????????????? | | ??????????????# ##"T"#####g####????????????????? | | ??????????????# == #?????????????????? | | ??????????????# ! #?????????????????? | | ??????????????# """ #?????????????????? | | ?????########## """ ! | #?????????????????? | | ????? # """* || #?????????????????? | | ????? # %% | ##?????????????????? | | ????? # % = #??????????????????? | | ????? """ """ # % " %% #??????????????????? | | ????# """ """ += """%= #??????????????????? | | ????# """ """ #% """ #??????????????????? | | ????# # ????????????????? | | ????# ! # ??????????????? | | ????######## # ?????????????? | | ???????# # ^ ####+## ????????????? | | ???????# # ^ #??? ?#####????????????? | | ???????# + #???? #?????????????????? | | ???????# " ^ #?????#?????????????????? | | ???????# # #### #???????????????????????? | | ???????# + #??# #???????????????????????? | | ???????## ######+##### #???????????????????????? | | ????????### ## #???????????????????????? | +----------------------------------------------------+ Best States ------------- Heat Dissipation 28 Energy Generation 15 Energy Capacity 400 Matter Stores 300 Matter Capacity 300 Sight Range 16 Terrain Scan Density 10 Evasion (%) 40 Recoil Reduction 2 Item Schematics ----------------- None Robot Schematics ------------------ None Fabricated ------------ Nothing Alien Tech Used ----------------- None Achievements -------------- None Challenges ------------ None Game ------ Seed TripodColdChainsword Manual? 0 Play Time 00:11:09 Cumulative 6.0 hours Start 2024.07.02 @ 21:56:34 End 2024.07.02 @ 22:08:21 Sessions 1 Manual Loads 0 Difficulty Rogue Special Mode None Game No. 12 Rogue 12 Adventurer 0 Explorer 0 Win Type - Total 0 Types 0/0/0/0/0/0/0/0/0 Lore% 8 Gallery% 11 Achievement% 13 Wizard Run 0 Options --------- Layout 0 ASCII 0 Keyboard 0 Movement Mouse Keybinds 0 Fullscreen 1 Font 24/Smallcaps Map View 76x50 Zoom Use 0% Tactical HUD 1 Map Filters NONE Filters NONE Steam 1 RUN: 0c49ef26-17c2-40f5-8432-569e6ba77c89